fUST/lending_fUST_20240906
["ID","MTS","AMOUNT","RATE_DAILY","PERIOD"]
[337339580,1725616260656,-350.590404,0.00019568,2]
[337339581,1725616260665,-350.590399,0.00019568,2]
[337339582,1725616260675,-500.0,0.00019573,2]
[337339583,1725616260685,-500.0,0.00019573,2]
[337339584,1725616260695,-500.0,0.00019573,2]
[337339585,1725616260704,-500.0,0.00019573,2]
[337339586,1725616260715,-407.39730399,0.00019573,2]
[337339587,1725616260725,-500.0,0.00019573,2]
[337339588,1725616260735,-500.0,0.00019573,2]
[337339589,1725616260745,-500.0,0.00019573,2]
[337339590,1725616260755,-160.72089228,0.00019573,2]
[337339591,1725616260765,-500.0,0.00019573,2]
[337339592,1725616260775,-500.0,0.00019573,2]
[337339593,1725616260785,-190.76931383,0.00019573,2]
[337339594,1725616260795,-500.0,0.00019573,2]
[337339595,1725616260806,-203.03803105,0.00019573,2]
[337339596,1725616260816,-501.55856227,0.00019573,2]
[337339597,1725616260826,-500.0,0.00019573,2]
[337339598,1725616260835,-160.22557755,0.00019573,2]
[337339599,1725616260845,-255.27453202,0.00019573,2]
[337339600,1725616260855,-505.89821726,0.00019573,2]
[337339601,1725616260865,-500.0,0.00019574,2]
[337339602,1725616260875,-1192.45,0.00019574,2]
[337339603,1725616260885,-500.0,0.00019576,2]
[337339604,1725616260895,-500.0,0.00019576,2]
[337339605,1725616260905,-164.07495635,0.00019576,2]
[337339606,1725616260915,-1192.45,0.00019576,2]
[337339607,1725616260924,-1192.45,0.00019576,2]
[337339608,1725616260934,-1192.45,0.00019576,2]
[337339609,1725616260944,-151.0,0.00019577,2]
[337339610,1725616260953,-164.314722,0.00019577,2]
[337339611,1725616260963,-164.31472,0.00019577,2]
[337339612,1725616260973,-1192.45,0.00019577,2]
[337339613,1725616260982,-1192.45,0.00019577,2]
[337339614,1725616260992,-1192.45,0.00019577,2]
[337339615,1725616261002,-1192.45,0.00019577,2]
[337339616,1725616261011,-1192.49053934,0.00019577,2]
[337339617,1725616261021,-209.393526,0.00019578,2]
[337339618,1725616261030,-209.393526,0.00019578,2]
[337339619,1725616261040,-234.183559,0.00019578,2]
[337339620,1725616261049,-234.183559,0.00019578,2]
[337339621,1725616261060,-151.0,0.00019578,2]
[337339622,1725616261069,-191.880612,0.00019578,2]
[337339623,1725616261078,-191.880612,0.00019578,2]
[337339624,1725616261087,-151.0,0.00019578,2]
[337339625,1725616261097,-268.050289,0.00019578,2]
[337339626,1725616261106,-151.0,0.00019578,2]
[337339627,1725616261116,-189.747515,0.00019578,2]
[337339628,1725616261125,-151.0,0.00019578,2]
[337339629,1725616261135,-189.747515,0.00019578,2]
[337339630,1725616261149,-315.045125,0.00019578,2]
[337339631,1725616261159,-315.045125,0.00019578,2]
[337339632,1725616261169,-209.393526,0.00019587,2]
[337339633,1725616261178,-209.393526,0.00019587,2]
[337339634,1725616261188,-209.393526,0.00019587,2]
[337339635,1725616261198,-209.393526,0.00019587,2]
[337339636,1725616261207,-209.393526,0.00019587,2]
[337339637,1725616261217,-209.393526,0.00019587,2]
[337339638,1725616261227,-234.183559,0.00019587,2]
[337339639,1725616261237,-234.183559,0.00019587,2]
[337339640,1725616261247,-234.183559,0.00019587,2]
[337339641,1725616261491,-234.183559,0.00019587,2]
[337339642,1725616261501,-234.183559,0.00019587,2]
[337339643,1725616261511,-234.183559,0.00019587,2]
[337339644,1725616261521,-154.139077,0.00019587,2]
[337339645,1725616261530,-151.0,0.00019587,2]
[337339646,1725616261540,-151.0,0.00019587,2]
[337339647,1725616261549,-156.61607,0.00019587,2]
[337339648,1725616261562,-191.880612,0.00019587,2]
[337339649,1725616261571,-191.880617,0.00019587,2]
[337339650,1725616261580,-151.0,0.00019587,2]
[337339651,1725616261589,-151.0,0.00019587,2]
[337339652,1725616261600,-151.0,0.00019587,2]
[337339653,1725616261609,-151.0,0.00019587,2]
[337339654,1725616261619,-189.747515,0.00019587,2]
[337339655,1725616261629,-189.747515,0.00019587,2]
[337339656,1725616261639,-151.0,0.00019587,2]
[337339657,1725616261648,-189.747515,0.00019587,2]
[337339658,1725616261659,-151.0,0.00019587,2]
[337339659,1725616261668,-189.747522,0.00019587,2]
[337339660,1725616261678,-315.045125,0.00019587,2]
[337339661,1725616261687,-315.045125,0.00019587,2]
[337339662,1725616261700,-315.045125,0.00019587,2]
[337339663,1725616261709,-315.045132,0.00019587,2]
[337339664,1725616261719,-500.0,0.00019592,2]
[337339665,1725616261728,-1988.81,0.00019592,2]
[337339666,1725616261738,-209.393526,0.00019596,2]
[337339667,1725616261748,-209.39352712,0.00019596,2]
[337339668,1725616261758,-234.183559,0.00019596,2]
[337339669,1725616261768,-234.183557,0.00019596,2]
[337339670,1725616261779,-150.112233,0.000196,2]
[337339671,1725616261788,-153.0,0.000196,2]
[337339672,1725616261798,-306.0,0.000196,2]
[337339673,1725616261807,-153.0,0.000196,2]
[337339674,1725616261816,-500.0,0.00019602,2]
[337339675,1725616261825,-500.0,0.00019602,2]
[337339676,1725616261835,-524.59,0.00019602,2]
[337339677,1725616261844,-500.0,0.00019602,2]
[337339678,1725616261853,-500.0,0.00019602,2]
[337339679,1725616261863,-500.0,0.00019602,2]
[337339680,1725616261872,-513.88406102,0.00019602,2]
[337339681,1725616261882,-500.0,0.00019602,2]
[337339682,1725616261891,-500.0,0.00019602,2]
[337339683,1725616261900,-500.0,0.00019602,2]
[337339684,1725616261909,-530.25,0.00019602,2]
[337339685,1725616261919,-620.10982586,0.00019602,2]
[337339686,1725616261929,-500.0,0.00019602,2]
[337339687,1725616261938,-500.0,0.00019602,2]
[337339688,1725616261947,-500.0,0.00019602,2]
[337339689,1725616261956,-500.0,0.00019602,2]
[337339690,1725616261966,-500.0,0.00019602,2]
[337339691,1725616261976,-500.0,0.00019602,2]
[337339692,1725616261985,-500.0,0.00019602,2]
[337339693,1725616261995,-500.0,0.00019602,2]
[337339694,1725616262004,-500.0,0.00019602,2]
[337339695,1725616262014,-500.0,0.00019602,2]
[337339696,1725616262025,-507.32608218,0.00019602,2]
[337339697,1725616262035,-500.0,0.00019602,2]
[337339698,1725616262044,-500.0,0.00019602,2]
[337339699,1725616262053,-500.0,0.00019602,2]
[337339700,1725616262062,-500.0,0.00019602,2]
[337339701,1725616262072,-500.0,0.00019602,2]
[337339702,1725616262082,-597.9,0.00019602,2]
[337339703,1725616262091,-500.0,0.00019602,2]
[337339704,1725616262101,-500.0,0.00019602,2]
[337339705,1725616262111,-500.0,0.00019602,2]
[337339706,1725616262121,-500.0,0.00019602,2]
[337339707,1725616262130,-500.0,0.00019602,2]
[337339708,1725616262140,-500.0,0.00019602,2]
[337339709,1725616262149,-500.0,0.00019602,2]
[337339710,1725616262159,-500.0,0.00019602,2]
[337339711,1725616262170,-510.90381461,0.00019602,2]
[337339712,1725616262180,-500.0,0.00019602,2]
[337339713,1725616262190,-500.0,0.00019602,2]
[337339714,1725616262200,-500.0,0.00019602,2]
[337339715,1725616262209,-500.0,0.00019602,2]
[337339716,1725616262219,-500.0,0.00019602,2]
[337339717,1725616262228,-500.0,0.00019602,2]
[337339718,1725616262238,-500.0,0.00019602,2]
[337339719,1725616262247,-509.13650927,0.00019602,2]
[337339720,1725616262259,-1014.52,0.00019602,2]
[337339721,1725616262269,-1684.13,0.00019602,2]
[337339722,1725616262283,-500.0,0.00019602,2]
[337339723,1725616262298,-500.0,0.00019602,2]
[337339724,1725616262308,-500.0,0.00019602,2]
[337339725,1725616262318,-5454.76,0.00019602,2]
[337339726,1725616262327,-500.0,0.00019602,2]
[337339727,1725616262337,-538.96320361,0.00019602,2]
[337339728,1725616262346,-500.0,0.00019602,2]
[337339729,1725616262356,-500.0,0.00019602,2]
[337339730,1725616262366,-2248.23,0.00019602,2]
[337339731,1725616262376,-500.0,0.00019602,2]
[337339732,1725616262385,-588.20591583,0.00019602,2]
[337339733,1725616262395,-500.0,0.00019602,2]
[337339734,1725616262404,-500.0,0.00019602,2]
[337339735,1725616262415,-2658.06,0.00019602,2]
[337339736,1725616262424,-500.0,0.00019602,2]
[337339737,1725616262434,-500.0,0.00019602,2]
[337339738,1725616262443,-500.0,0.00019602,2]
[337339739,1725616262453,-200.0,0.00019602,2]
[337339740,1725616262463,-1854.51,0.00019602,2]
[337339741,1725616262473,-1092.94,0.00019602,2]
[337339742,1725616262482,-500.0,0.00019602,2]
[337339743,1725616262492,-500.0,0.00019602,2]
[337339744,1725616262501,-500.0,0.00019602,2]
[337339745,1725616262510,-500.0,0.00019602,2]
[337339746,1725616262520,-576.35,0.00019602,2]
[337339747,1725616262533,-528.28439759,0.00019602,2]
[337339748,1725616262542,-500.0,0.00019602,2]
[337339749,1725616262553,-666.66,0.00019602,2]
[337339750,1725616262563,-8739.67,0.00019602,2]
[337339751,1725616262573,-510.68,0.00019602,2]
[337339752,1725616262582,-500.0,0.00019602,2]
[337339753,1725616262591,-500.0,0.00019602,2]
[337339754,1725616262602,-2225.86,0.00019602,2]
[337339755,1725616262612,-500.0,0.00019602,2]
[337339756,1725616262622,-151.0,0.00019608,2]
[337339757,1725616262633,-150.01,0.00019617,2]
[337339758,1725616262643,-1399.0497443,0.00019617,2]
[337339759,1725616262653,-17441.2015695,0.0001962,2]
[337339760,1725616262663,-151.0,0.0001962,2]
[337339761,1725616262672,-224.93604536,0.00019639,2]
[337339762,1725616262682,-154.3158136,0.000197,2]
[337339763,1725616262692,-2842.0,0.00019729,2]
[337339764,1725616262702,-156.0,0.0001974,2]
[337339765,1725616262711,-2222.54,0.00019787,2]
[337339766,1725616262720,-1574.63,0.00019787,2]
[337339767,1725616262730,-500.0,0.00019787,2]
[337339768,1725616262740,-1636.67,0.00019787,2]
[337339769,1725616262751,-2241.31,0.00019787,2]
[337339770,1725616262760,-500.0,0.00019787,2]
[337339771,1725616262770,-3598.85,0.00019787,2]
[337339772,1725616262782,-2862.17,0.00019787,2]
[337339773,1725616262792,-500.0,0.00019787,2]
[337339774,1725616262802,-500.0,0.00019787,2]
[337339775,1725616262812,-3268.91,0.00019787,2]
[337339776,1725616262821,-1863.36,0.00019787,2]
[337339777,1725616262831,-2031.81,0.00019787,2]
[337339778,1725616262840,-541.92,0.00019787,2]
[337339779,1725616262849,-1637.28002648,0.00019787,2]
[337339780,1725616263152,-164.15,0.00019309,3]
[337339781,1725616263162,-592.08,0.00019318,2]
[337339782,1725616263173,-592.08,0.00019318,2]
[337339783,1725616263183,-592.08,0.00019318,2]
[337339784,1725616263193,-592.08,0.00019318,2]
[337339785,1725616263202,-592.08,0.00019318,2]
[337339786,1725616263212,-592.12996673,0.00019318,2]
[337339787,1725616263221,-152.95997352,0.00019787,2]
[337339788,1725616263231,-27992.48,0.00019787,2]
[337339789,1725616263241,-500.0,0.00019787,2]
[337339790,1725616263251,-3652.89,0.00019787,2]
[337339791,1725616263261,-1548.11,0.00019787,2]
[337339792,1725616263271,-2905.28,0.00019787,2]
[337339793,1725616263281,-500.0,0.00019787,2]
[337339794,1725616263291,-3203.93,0.00019787,2]
[337339795,1725616263302,-608.53,0.00019787,2]
[337339796,1725616263312,-500.0,0.00019787,2]
[337339797,1725616263322,-4056.18,0.00019787,2]
[337339798,1725616263332,-564.76,0.00019787,2]
[337339799,1725616263342,-500.0,0.00019788,2]
[337339800,1725616263352,-500.0,0.00019788,2]
[337339801,1725616263361,-503.37539464,0.00019788,2]
[337339802,1725616263371,-500.0,0.00019788,2]
[337339803,1725616263381,-500.0,0.00019788,2]
[337339804,1725616263391,-500.0,0.00019788,2]
[337339805,1725616263400,-500.0,0.00019788,2]
[337339806,1725616263411,-1016.55,0.00019788,2]
[337339807,1725616263422,-500.0,0.00019788,2]
[337339808,1725616263433,-2416.8,0.00019788,2]
[337339809,1725616263443,-2211.62,0.00019788,2]
[337339810,1725616263453,-500.0,0.00019788,2]
[337339811,1725616263463,-1179.43,0.00019788,2]
[337339812,1725616263473,-181.4378267,0.00019788,2]
[337339813,1725616263483,-896.03,0.00019788,2]
[337339814,1725616263492,-500.0,0.00019788,2]
[337339815,1725616263502,-500.0,0.00019788,2]
[337339816,1725616263512,-500.0,0.00019788,2]
[337339817,1725616263522,-500.0,0.00019788,2]
[337339818,1725616263532,-229.47365011,0.00019788,2]
[337339819,1725616263542,-651.19,0.00019788,2]
[337339820,1725616263554,-740.72,0.00019788,2]
[337339821,1725616263563,-500.0,0.00019788,2]
[337339822,1725616263573,-500.0,0.00019788,2]
[337339823,1725616263583,-500.0,0.00019788,2]
[337339824,1725616263593,-500.0,0.00019788,2]
[337339825,1725616263602,-500.0,0.00019788,2]
[337339826,1725616263612,-500.0,0.00019788,2]
[337339827,1725616263622,-500.0,0.00019788,2]
[337339828,1725616263632,-3108.09,0.00019788,2]
[337339829,1725616263643,-500.0,0.00019788,2]
[337339830,1725616263653,-500.0,0.00019788,2]
[337339831,1725616263663,-4020.89,0.00019788,2]
[337339832,1725616263672,-500.0,0.00019788,2]
[337339833,1725616263823,-675.34,0.00019788,2]
[337339834,1725616263833,-500.0,0.00019788,2]
[337339835,1725616263843,-571.64414905,0.00019788,2]
[337339836,1725616263852,-500.0,0.00019788,2]
[337339837,1725616263862,-500.0,0.00019788,2]
[337339838,1725616263871,-500.0,0.00019788,2]
[337339839,1725616263881,-500.0,0.00019788,2]
[337339840,1725616263890,-500.0,0.00019788,2]
[337339841,1725616263899,-500.0,0.00019788,2]
[337339842,1725616263909,-1947.37,0.00019788,2]
[337339843,1725616263918,-1058.62,0.00019788,2]
[337339844,1725616263927,-2123.69,0.00019788,2]
[337339845,1725616263936,-1253.38,0.00019788,2]
[337339846,1725616263946,-500.0,0.00019788,2]
[337339847,1725616263955,-500.0,0.00019788,2]
[337339848,1725616263965,-2387.58,0.00019788,2]
[337339849,1725616263975,-861.46,0.00019788,2]
[337339850,1725616263984,-1726.32,0.00019788,2]
[337339851,1725616263993,-3092.75,0.00019788,2]
[337339852,1725616264002,-500.0,0.00019788,2]
[337339853,1725616264012,-500.0,0.00019788,2]
[337339854,1725616264024,-1079.94,0.00019788,2]
[337339855,1725616264034,-634.49,0.00019788,2]
[337339856,1725616264043,-2299.74,0.00019788,2]
[337339857,1725616264053,-1430.1,0.00019788,2]
[337339858,1725616264062,-3738.86,0.00019788,2]
[337339859,1725616264072,-3020.21,0.00019788,2]
[337339860,1725616264081,-2164.45,0.00019788,2]
[337339861,1725616264091,-500.0,0.00019788,2]
[337339862,1725616264100,-1583.39,0.00019788,2]
[337339863,1725616264109,-3903.99,0.00019788,2]
[337339864,1725616264119,-1076.7,0.00019788,2]
[337339865,1725616264129,-1681.25,0.00019788,2]
[337339866,1725616264138,-607.56,0.00019788,2]
[337339867,1725616264148,-3677.51,0.00019788,2]
[337339868,1725616264158,-500.0,0.00019788,2]
[337339869,1725616264168,-500.0,0.00019788,2]
[337339870,1725616264177,-740.19,0.00019788,2]
[337339871,1725616264187,-500.0,0.00019788,2]
[337339872,1725616264196,-500.0,0.00019788,2]
[337339873,1725616264205,-586.11902289,0.00019788,2]
[337339874,1725616264215,-3403.01,0.00019788,2]
[337339875,1725616264225,-692.01,0.00019788,2]
[337339876,1725616264235,-500.0,0.00019788,2]
[337339877,1725616264245,-919.5,0.00019788,2]
[337339878,1725616264254,-500.0,0.00019788,2]
[337339879,1725616264264,-3449.59,0.00019788,2]
[337339880,1725616264276,-500.0,0.00019788,2]
[337339881,1725616264285,-500.0,0.00019788,2]
[337339882,1725616264295,-511.12,0.00019788,2]
[337339883,1725616264305,-500.0,0.00019788,2]
[337339884,1725616264315,-49554.43,0.00019788,2]
[337339885,1725616264324,-741.23,0.00019788,2]
[337339886,1725616264334,-2222.85,0.00019788,2]
[337339887,1725616264344,-500.0,0.00019788,2]
[337339888,1725616264354,-605.47,0.00019788,2]
[337339889,1725616264363,-500.0,0.00019788,2]
[337339890,1725616264373,-912.95,0.00019788,2]
[337339891,1725616264383,-500.0,0.00019788,2]
[337339892,1725616264392,-500.0,0.00019788,2]
[337339893,1725616264402,-2711.58,0.00019788,2]
[337339894,1725616264412,-1038.96,0.00019788,2]
[337339895,1725616264422,-1000.0,0.00019788,2]
[337339896,1725616264431,-1179.31,0.00019788,2]
[337339897,1725616264440,-500.0,0.00019788,2]
[337339898,1725616264450,-500.0,0.00019788,2]
[337339899,1725616264460,-500.0,0.00019788,2]
[337339900,1725616264469,-757.5,0.00019788,2]
[337339901,1725616264479,-3505.48,0.00019788,2]
[337339902,1725616264488,-500.0,0.00019798,2]
[337339903,1725616264498,-500.0,0.00019798,2]
[337339904,1725616264507,-831.18,0.00019798,2]
[337339905,1725616264516,-2996.97,0.00019798,2]
[337339906,1725616264527,-500.0,0.00019798,2]
[337339907,1725616264536,-1943.02,0.00019798,2]
[337339908,1725616264545,-500.0,0.00019798,2]
[337339909,1725616264557,-3108.39,0.00019798,2]
[337339910,1725616264566,-1539.04,0.00019798,2]
[337339911,1725616264576,-8718.86,0.00019798,2]
[337339912,1725616264585,-1508.63,0.00019798,2]
[337339913,1725616264595,-500.0,0.00019798,2]
[337339914,1725616264605,-2114.8,0.00019798,2]
[337339915,1725616264615,-1761.97,0.00019798,2]
[337339916,1725616264624,-3522.6,0.00019798,2]
[337339917,1725616264636,-2509.3,0.00019798,2]
[337339918,1725616264645,-116319.95,0.00019798,2]
[337339919,1725616264655,-500.0,0.00019798,2]
[337339920,1725616264664,-1123.46,0.00019798,2]
[337339921,1725616264675,-500.0,0.00019798,2]
[337339922,1725616264684,-1344.02,0.00019798,2]
[337339923,1725616264694,-504.0737863,0.00019798,2]
[337339924,1725616264704,-500.0,0.00019799,2]
[337339925,1725616264713,-500.0,0.00019799,2]
[337339926,1725616264722,-500.0,0.00019799,2]
[337339927,1725616264731,-500.0,0.00019799,2]
[337339928,1725616264740,-500.0,0.00019799,2]
[337339929,1725616264749,-500.0,0.00019799,2]
[337339930,1725616264760,-500.0,0.00019799,2]
[337339931,1725616264770,-205.88130588,0.00019799,2]
[337339932,1725616264780,-500.0,0.00019799,2]
[337339933,1725616264789,-500.0,0.00019799,2]
[337339934,1725616264799,-500.0,0.00019799,2]
[337339935,1725616264809,-500.0,0.00019799,2]
[337339936,1725616264822,-500.0,0.00019799,2]
[337339937,1725616264843,-500.0,0.00019799,2]
[337339938,1725616264860,-500.0,0.00019799,2]
[337339939,1725616264877,-500.0,0.00019799,2]
[337339940,1725616264897,-500.0,0.00019799,2]
[337339941,1725616264917,-500.0,0.00019799,2]
[337339942,1725616264933,-500.0,0.00019799,2]
[337339943,1725616264951,-500.0,0.00019799,2]
[337339944,1725616264965,-500.0,0.00019799,2]
[337339945,1725616264981,-500.0,0.00019799,2]
[337339946,1725616264999,-500.0,0.00019799,2]
[337339947,1725616265019,-500.0,0.00019799,2]
[337339948,1725616265032,-500.0,0.00019799,2]
[337339949,1725616265050,-798.97,0.00019799,2]
[337339950,1725616265065,-500.0,0.00019799,2]
[337339951,1725616265082,-500.0,0.00019799,2]
[337339952,1725616265096,-500.0,0.00019799,2]
[337339953,1725616265109,-500.0,0.00019799,2]
[337339954,1725616265123,-500.0,0.00019799,2]
[337339955,1725616265141,-500.0,0.00019799,2]
[337339956,1725616265155,-500.0,0.00019799,2]
[337339957,1725616265168,-500.0,0.00019799,2]
[337339958,1725616265183,-500.0,0.00019799,2]
[337339959,1725616265196,-500.0,0.00019799,2]
[337339960,1725616265210,-500.0,0.00019799,2]
[337339961,1725616265224,-500.0,0.00019799,2]
[337339962,1725616265238,-500.0,0.00019799,2]
[337339963,1725616265252,-506.8401281,0.00019799,2]
[337339964,1725616265266,-500.0,0.00019799,2]
[337339965,1725616265288,-500.0,0.00019799,2]
[337339966,1725616265303,-500.0,0.00019799,2]
[337339967,1725616265317,-674.14,0.00019799,2]
[337339968,1725616265331,-1168.91,0.00019799,2]
[337339969,1725616265346,-500.0,0.00019799,2]
[337339970,1725616265359,-500.0,0.00019799,2]
[337339971,1725616265373,-500.0,0.00019799,2]
[337339972,1725616265388,-584.82228009,0.00019799,2]
[337339973,1725616265402,-500.0,0.00019799,2]
[337339974,1725616265417,-500.0,0.00019799,2]
[337339975,1725616265431,-500.0,0.00019799,2]
[337339976,1725616265445,-500.0,0.00019799,2]
[337339977,1725616265460,-500.0,0.00019799,2]
[337339978,1725616265476,-500.0,0.00019799,2]
[337339979,1725616265490,-500.0,0.00019799,2]
[337339980,1725616265504,-500.0,0.00019799,2]
[337339981,1725616265519,-500.0,0.00019799,2]
[337339982,1725616265535,-500.0,0.00019799,2]
[337339983,1725616265549,-2850.05,0.00019799,2]
[337339984,1725616265566,-576.53,0.00019799,2]
[337339985,1725616265581,-500.0,0.00019799,2]
[337339986,1725616265594,-500.0,0.00019799,2]
[337339987,1725616265609,-500.0,0.00019799,2]
[337339988,1725616265623,-500.0,0.00019799,2]
[337339989,1725616265638,-500.0,0.00019799,2]
[337339990,1725616265652,-500.0,0.00019799,2]
[337339991,1725616265667,-500.0,0.00019799,2]
[337339992,1725616265681,-500.0,0.00019799,2]
[337339993,1725616265694,-500.0,0.00019799,2]
[337339994,1725616265708,-500.0,0.00019799,2]
[337339995,1725616265722,-638.53757943,0.00019799,2]
[337339996,1725616265736,-500.0,0.00019799,2]
[337339997,1725616265750,-500.0,0.00019799,2]
[337339998,1725616265765,-500.0,0.00019799,2]
[337339999,1725616265779,-500.0,0.00019799,2]
[337340000,1725616265793,-1292.59,0.00019799,2]
[337340001,1725616265808,-500.0,0.00019799,2]
[337340002,1725616265822,-500.0,0.00019799,2]
[337340003,1725616265836,-500.0,0.00019799,2]
[337340004,1725616265850,-500.0,0.00019799,2]
[337340005,1725616265864,-500.0,0.00019799,2]
[337340006,1725616265874,-500.0,0.00019799,2]
[337340007,1725616265883,-500.0,0.00019799,2]
[337340008,1725616265892,-500.0,0.00019799,2]
[337340009,1725616265902,-1511.72,0.00019799,2]
[337340010,1725616265912,-917.96,0.00019799,2]
[337340011,1725616265921,-500.0,0.00019799,2]
[337340012,1725616265930,-535.46731851,0.00019799,2]
[337340013,1725616265940,-557.14,0.00019799,2]
[337340014,1725616265950,-500.0,0.00019799,2]
[337340015,1725616265959,-500.0,0.00019799,2]
[337340016,1725616265970,-500.0,0.00019799,2]
[337340017,1725616265980,-500.0,0.00019799,2]
[337340018,1725616265990,-500.0,0.00019799,2]
[337340019,1725616265999,-500.0,0.00019799,2]
[337340020,1725616266008,-500.0,0.00019799,2]
[337340021,1725616266018,-500.0,0.00019799,2]
[337340022,1725616266030,-500.0,0.00019799,2]
[337340023,1725616266039,-500.0,0.00019799,2]
[337340024,1725616266048,-500.0,0.00019799,2]
[337340025,1725616266058,-500.0,0.00019799,2]
[337340026,1725616266068,-777.75,0.00019799,2]
[337340027,1725616266078,-500.0,0.00019799,2]
[337340028,1725616266087,-625.56,0.00019799,2]
[337340029,1725616266097,-500.0,0.00019799,2]
[337340030,1725616266107,-500.0,0.00019799,2]
[337340031,1725616266116,-500.0,0.00019799,2]
[337340032,1725616266125,-500.0,0.00019799,2]
[337340033,1725616266135,-502.68727343,0.00019799,2]
[337340034,1725616266144,-500.0,0.00019799,2]
[337340035,1725616266154,-500.0,0.00019799,2]
[337340036,1725616266164,-500.0,0.00019799,2]
[337340037,1725616266173,-868.9,0.00019799,2]
[337340038,1725616266183,-500.0,0.00019799,2]
[337340039,1725616266534,-500.0,0.00019799,2]
[337340040,1725616266564,-500.0,0.00019799,2]
[337340041,1725616266578,-1073.16,0.00019799,2]
[337340042,1725616266600,-175.41172744,0.00019799,2]
[337340043,1725616266610,-500.0,0.00019799,2]
[337340044,1725616266619,-500.0,0.00019799,2]
[337340045,1725616266628,-500.0,0.00019799,2]
[337340046,1725616266638,-500.0,0.00019799,2]
[337340047,1725616266648,-579.2,0.00019799,2]
[337340048,1725616266657,-500.0,0.00019799,2]
[337340049,1725616266666,-500.0,0.00019799,2]
[337340050,1725616266676,-500.0,0.00019799,2]
[337340051,1725616266686,-500.0,0.00019799,2]
[337340052,1725616266696,-1736.67,0.00019799,2]
[337340053,1725616266706,-500.0,0.00019799,2]
[337340054,1725616266716,-194.88567698,0.00019799,2]
[337340055,1725616266727,-500.0,0.00019799,2]
[337340056,1725616266737,-957.73,0.00019799,2]
[337340057,1725616266747,-510.76,0.00019799,2]
[337340058,1725616266757,-597.47,0.00019799,2]
[337340059,1725616266766,-500.0,0.00019799,2]
[337340060,1725616266776,-500.0,0.00019799,2]
[337340061,1725616266786,-500.0,0.00019799,2]
[337340062,1725616266796,-500.0,0.00019799,2]
[337340063,1725616266805,-500.0,0.00019799,2]
[337340064,1725616266815,-500.0,0.00019799,2]
[337340065,1725616266825,-786.16,0.00019799,2]
[337340066,1725616266834,-500.0,0.00019799,2]
[337340067,1725616266844,-500.0,0.00019799,2]
[337340068,1725616266853,-500.0,0.00019799,2]
[337340069,1725616266863,-600.73,0.00019799,2]
[337340070,1725616266873,-537.34,0.00019799,2]
[337340071,1725616266883,-500.0,0.00019799,2]
[337340072,1725616266892,-500.0,0.00019799,2]
[337340073,1725616266902,-500.0,0.00019799,2]
[337340074,1725616266911,-500.0,0.00019799,2]
[337340075,1725616266921,-500.0,0.00019799,2]
[337340076,1725616266932,-676.16,0.00019799,2]
[337340077,1725616266943,-500.0,0.00019799,2]
[337340078,1725616266952,-500.0,0.00019799,2]
[337340079,1725616266962,-500.0,0.00019799,2]